Cogmind - Beta 9.6 @@@ ROGUE MODE // 2020.06.03 @ 21:16:31 Player: Teratos Result: Self-destructed Performance ------------- Evolutions (2) 1000 Regions Visited (4) 800 Robots Destroyed (19) 95 Value Destroyed (462) 462 Prototype IDs (1) 20 Alien Tech Used (0) 0 Bonus (6) 6 TOTAL SCORE: 2383 Bonus ------- High Alert Combat Kills 6 Cogmind --------- Core Integrity 370/550 Matter 8/300 Energy 100/100 System Corruption 0% Temperature Cool (0) Movement Core (50) Location -8/Materials Parts ------- > --- POWER (2) -------- (None) > --- PROPULSION (4) --- (None) > --- UTILITY (3) ------ Visual Processing Unit Utility Shielding Weapon Shielding > --- WEAPON (2) ------- (None) > --- INVENTORY (4) ---- Small Matter Pod (0) Transmission Jammer Heavy Assault Rifle Peak State ------------ > --- POWER ------------ Light Ion Engine > --- PROPULSION ------- Flight Unit Flight Unit > --- UTILITY ---------- Weapon Shielding Weapon Shielding > --- WEAPON ----------- Mini Grenade Launcher Mini Grenade Launcher > --- INVENTORY -------- Mini Grenade Launcher Mini Grenade Launcher [Rating: 9] Favorites ----------- Power Light Ion Engine Engine Light Ion Engine Propulsion Flight Unit Wheel Wheel Hover Unit Aerolev Unit Flight Unit Flight Unit Utility Weapon Shielding Processor Visual Processing Unit Protection Weapon Shielding Weapon Mini Grenade Launcher Energy Gun EM Pulse Gun Ballistic Gun Light Assault Rifle Launcher Mini Grenade Launcher Build | -11 -10 -9 -9 -8 ------- Run | Scr Mat Mat Min Mat Slots Evolved 4 | . . 2 . 2 Power 1 | . . . . 1 Propulsion 2 | . . 1 . 1 Utility 1 | . . 1 . . Weapon . | . . . . . Parts Attached 20 | 5 9 . 4 2 Power 2 | 1 1 . . . Engine 2 | 1 1 . . . Core . | . . . . . Reactor . | . . . . . Propulsion 6 | 2 2 . 1 1 Treads . | . . . . . Leg . | . . . . . Wheel 2 | 2 . . . . Hover 1 | . . . . 1 Flight 3 | . 2 . 1 . Utility 4 | . 2 . 1 1 Device . | . . . . . Storage . | . . . . . Processor 1 | . . . . 1 Hackware . | . . . . . Protection 3 | . 2 . 1 . Artifact . | . . . . . Weapon 8 | 2 4 . 2 . Energy Gun 3 | 1 2 . . . Energy Cannon . | . . . . . Ballistic Gun 2 | 1 . . 1 . Ballistic Cannon . | . . . . . Launcher 3 | . 2 . 1 . Special Weapon . | . . . . . Impact Weapon . | . . . . . Slashing Weapon . | . . . . . Piercing Weapon . | . . . . . Special Melee Weapon . | . . . . . Unidentified Prototypes 1 | . . . . 1 Parts Lost 6 | . . 1 4 1 Power 1 | . . . 1 . Propulsion 4 | . . 1 2 1 Utility . | . . . . . Weapon 1 | . . . 1 . Highest Loss Streak 4 | . . 1 4 1 Average Slot Usage (%) 51 | . 74 43 49 35 Engine 9 | . 14 11 11 . Wheel 3 | . 14 . . . Hover 1 | . . . . 9 Flight 11 | . 12 12 16 . Processor 1 | . . . . 8 Protection 13 | . 5 13 16 18 Energy Gun 1 | . 4 . . . Ballistic Gun 3 | . 4 . 5 . Launcher 5 | . 17 5 . . Naked Turns . | . . . . . Heaviest Build 9 | 9 9 7 6 2 Greatest Support 26 | 26 26 8 9 11 Greatest Overweight (x) 2 | 2 1 . 1 . Average Overweight (x) . | . . . . . Largest Inventory Capacity 4 | 4 4 4 4 4 Average Capacity 4 | 4 4 4 4 4 Most Carried 4 | . 2 4 4 4 Average Carried 2 | . . 3 3 3 Final Capacity 4 | 4 4 4 4 4 Final Carried 4 | . 2 4 4 3 Class Distribution -------------------- 100% | Mutant Dominant Class ---------------- Mutant | -10/Materials Mutant | -9/Materials Mutant | -9/Mines Mutant | -8/Materials Resources | -11 -10 -9 -9 -8 ----------- Run | Scr Mat Mat Min Mat Matter Collected 373 | 250 96 . 27 . Remotely . | . . . . . Salvage Created 217 | . 217 . . . Parts 25 | . 25 . . . Haulers Intercepted 1 | . 1 . . . Recyclers Shooed . | . . . . . Parts Field Recycled . | . . . . . Retrieved Matter . | . . . . . Parts Self-Destructed . | . . . . . Prevented . | . . . . . Kills | -11 -10 -9 -9 -8 ------- Run | Scr Mat Mat Min Mat Combat Hostiles Destroyed 10 | . 8 2 . . Guns 3 | . 3 . . . AOE 7 | . 5 2 . . Classes Destroyed 9 | . 8 1 . . Worker 2 | . 2 . . . Builder 1 | . 1 . . . Tunneler 2 | . 2 . . . Hauler 1 | . 1 . . . Recycler 1 | . 1 . . . Operator 2 | . 1 1 . . Swarmer 6 | . 6 . . . Grunt 2 | . 2 . . . Sentry 2 | . . 2 . . Best Kill Streak 13 | . 13 3 . . Combat Bots Only 5 | . 5 2 . . Max Kills in Single Turn 4 | . 4 1 . . Gunslinging . | . . . . . Exploded 2 | . 2 1 . . Melee . | . . . . . Uniques/NPCs Destroyed . | . . . . . Combat | -11 -10 -9 -9 -8 -------- Run | Scr Mat Mat Min Mat Damage Taken 728 | . 79 113 246 290 Core 375 | . 13 54 128 180 Absorbed by Shields . | . . . . . Core Remaining (%) 82 | 100 94 . 54 . Volleys Fired 19 | . 11 8 . . Largest 2 | . 2 2 . . Hottest 60 | . 60 60 . . Shots Fired 38 | . 22 16 . . Gun 10 | . 10 . . . Cannon . | . . . . . Launcher 28 | . 12 16 . . Special . | . . . . . Kinetic 5 | . 5 . . . Thermal . | . . . . . Explosive 28 | . 12 16 . . Electromagnetic 5 | . 5 . . . Robot Hit Streak 2 | . 1 2 . . Robot Miss Streak 2 | . 2 . . . Penetration Max . | . . . . . Secondary Targets . | . . . . . Shots Hit Robots 5 | . 4 1 . . Core Hits 29 | . 20 9 . . Critical Hits . | . . . . . Critical Kills . | . . . . . Critical Parts Destroyed . | . . . . . Melee Attacks . | . . . . . Impact . | . . . . . Slashing . | . . . . . Piercing . | . . . . . Sneak Attacks . | . . . . . Combat Hostiles . | . . . . . Follow-up Attacks . | . . . . . Damage Inflicted 1206 | . 952 254 . . Guns 58 | . 58 . . . Cannons . | . . . . . Explosions 1148 | . 894 254 . . Melee . | . . . . . Ramming . | . . . . . Kinetic 26 | . 26 . . . Thermal 529 | . 529 . . . Explosive 619 | . 365 254 . . Electromagnetic 32 | . 32 . . . Impact . | . . . . . Slashing . | . . . . . Piercing . | . . . . . Highest Corruption . | . . . . . Average Corruption . | . . . . . Corruption Purged . | . . . . . Overload Shots . | . . . . . Overflow Damage 137 | . 137 . . . Projectiles . | . . . . . Explosions 137 | . 137 . . . Melee . | . . . . . Knockbacks . | . . . . . Impact . | . . . . . Kinetic . | . . . . . Secondary . | . . . . . Self-Inflicted Damage . | . . . . . Shots . | . . . . . Rammed . | . . . . . Targets Rammed . | . . . . . Kicked . | . . . . . Crushed . | . . . . . Highest Temperature 21 | . 21 7 . . Average Temperature 7 | . 8 4 . . Received Heat Transfer 126 | . 9 36 . 81 Siege Activations . | . . . . . Robots Corrupted . | . . . . . Combat Hostiles . | . . . . . Parts Fried . | . . . . . Impact Corruptions . | . . . . . Robots Melted . | . . . . . Combat Hostiles . | . . . . . Parts Melted . | . . . . . Heat Transferred 350 | . 350 . . . Parts Sabotaged . | . . . . . Parts Stolen . | . . . . . Parts Stripped . | . . . . . Power Chain Reactions . | . . . . . Missiles Intercepted . | . . . . . Alert | -11 -10 -9 -9 -8 ------- Run | Scr Mat Mat Min Mat Peak Influence 472 | . 472 367 142 84 Average Influence 141 | . 110 303 138 65 Maximum Alert Level 2 | . 2 1 . . Low Security (%) 79 | 100 91 5 100 100 Level 1 18 | . . 94 . . Level 2 2 | . 8 . . . Level 3 . | . . . . . Level 4 . | . . . . . Level 5 . | . . . . . High Security . | . . . . . Max Security . | . . . . . Squads Dispatched 1 | . . 1 . . Investigation . | . . . . . Extermination . | . . . . . Reinforcement 1 | . . 1 . . Assault . | . . . . . Garrison . | . . . . . Intercept . | . . . . . Construction Impeded . | . . . . . Haulers Reinforced . | . . . . . Stealth | -11 -10 -9 -9 -8 --------- Run | Scr Mat Mat Min Mat Distress Signals 2 | . . 1 . 1 Communications Jammed . | . . . . . Distress Signals . | . . . . . Times Spotted 39 | . 5 15 6 13 Peak Tracking Total 11 | . 3 6 5 11 Tactical Retreats 5 | . . 2 2 1 Traps | -11 -10 -9 -9 -8 ------- Run | Scr Mat Mat Min Mat Traps Triggered . | . . . . . Indirectly . | . . . . . Trap Hack Attempts . | . . . . . Triggered . | . . . . . Disarmed . | . . . . . Reprogrammed . | . . . . . Reused . | . . . . . Traps Extracted . | . . . . . Installed . | . . . . . Triggered . | . . . . . Machines | -11 -10 -9 -9 -8 ---------- Run | Scr Mat Mat Min Mat Machines Disabled 17 | . 15 2 . . Max in Single Turn 14 | . 14 1 . . Machines Sabotaged . | . . . . . Garrisons Compromised . | . . . . . Overloaded Fab Kills . | . . . . . Fab Network Shutdowns . | . . . . . Hacking | -11 -10 -9 -9 -8 --------- Run | Scr Mat Mat Min Mat Machines Accessed 1 | . . 1 . . Terminals 1 | . . 1 . . Fabricators . | . . . . . Repair Stations . | . . . . . Recycling Units . | . . . . . Scanalyzers . | . . . . . Garrison Access . | . . . . . Total Hacks 2 | . . 2 . . Successful 2 | . . 2 . . Failed . | . . . . . Catastrophic . | . . . . . Database Lockouts . | . . . . . Manual . | . . . . . Terminals 2 | . . 2 . . Fabricators . | . . . . . Repair Stations . | . . . . . Recycling Units . | . . . . . Scanalyzers . | . . . . . Garrison Access . | . . . . . Terminal Hacks 2 | . . 2 . . Record 1 | . . 1 . . Zone Layout 1 | . . 1 . . Fabricator Hacks . | . . . . . Repair Station Hacks . | . . . . . Recycling Unit Hacks . | . . . . . Scanalyzer . | . . . . . Garrison Access Hacks . | . . . . . Unauthorized Hacks . | . . . . . Terminals . | . . . . . Fabricators . | . . . . . Repair Stations . | . . . . . Recycling Units . | . . . . . Scanalyzers . | . . . . . Garrison Access . | . . . . . Data Cores Recovered . | . . . . . Used . | . . . . . Hacking Detections 1 | . . 1 . . Full Trace Events . | . . . . . Feedback Events . | . . . . . Feedback Blocked . | . . . . . Robot Schematics Acquired . | . . . . . Robots Built . | . . . . . Matter . | . . . . . Time . | . . . . . Total Robot Build Rating . | . . . . . Part Schematics Acquired . | . . . . . Parts Built . | . . . . . Matter . | . . . . . Time . | . . . . . Total Part Build Rating . | . . . . . Parts Repaired . | . . . . . Time . | . . . . . Parts Recycled . | . . . . . Recycled Matter . | . . . . . Retrieved Matter . | . . . . . Retrieved Components . | . . . . . Parts Scanalyzed . | . . . . . Part Schematics Acquired . | . . . . . Parts Damaged . | . . . . . Bothacking | -11 -10 -9 -9 -8 ------------ Run | Scr Mat Mat Min Mat Used RIF Installer . | . . . . . Robots Hacked . | . . . . . Non-combat . | . . . . . Combat . | . . . . . Robot Hacks Applied . | . . . . . Relay Couplers Released . | . . . . . Robots Rewired . | . . . . . Allies Hacked . | . . . . . Hacks Repelled . | . . . . . Allies | -11 -10 -9 -9 -8 -------- Run | Scr Mat Mat Min Mat Total Allies . | . . . . . Largest Group . | . . . . . Highest-Rated Group . | . . . . . Highest-Rated Ally . | . . . . . Total Orders . | . . . . . Ally Attacks . | . . . . . Total Damage . | . . . . . Kills . | . . . . . Allies Corrupted . | . . . . . Allies Melted . | . . . . . Intel | -11 -10 -9 -9 -8 ------- Run | Scr Mat Mat Min Mat Robot Analysis Total . | . . . . . Derelict Logs Recovered 2 | . . . 2 . Drone Launches . | . . . . . Drone Recoveries . | . . . . . Exploration | -11 -10 -9 -9 -8 ------------- Run | Scr Mat Mat Min Mat Turns Passed 648 | 41 148 128 207 124 Spaces Moved 1141 | 38 158 258 457 230 Core 54 | 11 . . 26 17 Treads . | . . . . . Legs . | . . . . . Wheels 91 | 27 64 . . . Hover 213 | . . . . 213 Flight 783 | . 94 258 431 . Fastest Speed 37 | 50 37 37 37 50 Average Speed 47 | 89 60 39 41 50 Slowest Speed 150 | 150 120 40 120 50 Overloaded Moves . | . . . . . Propulsion Burnouts . | . . . . . Robots Hopped 12 | . . 8 4 . Cave-ins Triggered . | . . . . . Exploration Rate (%) 35 | 3 36 30 80 30 Regions Visited 4 Branch Regions 1 Pre-discovered Areas 2 | . . . 2 . Known Exits Taken . | . . . . . Unknown Exits Taken 4 | 1 1 1 1 . Scrap Searched 1 | . . . 1 . Spaces Dug . | . . . . . Terrain Destroyed 129 | . 85 44 . . Melee . | . . . . . Projectile . | . . . . . AOE 129 | . 85 44 . . Actions | -11 -10 -9 -9 -8 --------- Run | Scr Mat Mat Min Mat Total 1195 | 42 187 260 467 239 Wait 11 | . 1 . 10 . Move 1115 | 37 157 243 448 230 Hop 10 | . . 6 4 . Pick Up 5 | . 2 . . 3 Fast Attach 19 | 5 9 . 3 2 Attach 1 | . . . 1 . Detach 3 | . . 2 1 . Swap . | . . . . . Drop 12 | . 7 1 . 4 Fire 19 | . 11 8 . . Melee . | . . . . . Ram . | . . . . . Kick . | . . . . . Crush . | . . . . . Escape Stasis . | . . . . . Rewire . | . . . . . Trap . | . . . . . Miscellaneous . | . . . . . Route ------- -11/Scrapyard -10/Materials (discovered 2 exits: *Mat / [*Min]) -9/Materials -9/Mines -8/Materials History --------- Turn | Location | Event 14 | -11/Scrapyard | Discovered new exit (range 15) 42 | -11/Scrapyard | Entered Materials 79 | -10/Materials | Discovered new exit (range 8) 188 | -10/Materials | Discovered new exit (range 5) 190 | -10/Materials | Entered another Materials area 190 | -9/Materials | Evolved 2 slots: Propulsion x1, Utility x1 295 | -9/Materials | Discovered new exit (range 12) 305 | -9/Materials | Build established: Mutant 318 | -9/Materials | Entered Mines 363 | -9/Mines | Learned location of Zion (-7) 398 | -9/Mines | Learned Materials interactive machine intel 472 | -9/Mines | Learned location of Storage (-9) 521 | -9/Mines | Discovered new exit (range 6) 525 | -9/Mines | Entered Materials 525 | -8/Materials | Evolved 2 slots: Power x1, Propulsion x1 526 | -8/Materials | Loaded intel: 19 interactive machine locations 552 | -8/Materials | Lost 4 parts (1p2n1w) 649 | -8/Materials | Self-destructed Last Messages --------------- PARAMETERS=POWER_1,PROPULSION_1 LOCATION=UNKNOWN GOAL=ESCAPE Loading Materials interactive machine intel (x19)... 00529_ Acquired Prototype Hover Unit. 00529_ Identified Aerolev Unit. 00531_ Acquired Visual Processing Unit. 00538_ K-01 Serf collects debris. 00551_ Dropped Mni. Grenade Launcher. 00552_ Acquired Transmission Jammer. 00554_ Acquired Hvy. Assault Rifle. 00557_ Dropped Mni. Grenade Launcher. 00558_ Acquired Sml. Matter Pod. 00561_ W-25 Informer sends out distress signal. 00578_ R-06 Scavenger collects Mni. Grenade Launcher. 00588_ K-01 Serf collects debris. 00637_ Slug penetrates Wall. 00638_ K-01 Serf collects debris. 00643_ Aerolev Unit destroyed. 00645_ K-01 Serf collects debris. Map ----- +----------------------------------------------------+ | ????????????????????????????????????????????????R" | | ???????????????????????????????????????????????""" | | ?????????????????????????????????????????????????? | | ?????????????????????????????????????????????????? | | ?????????????????????????????????????????????????? | | ?????????????????????????????????????????????????? | | ?????????????????????????????????????????????????? | | ?????????????????????????????????????????????????? | | ?????????????????????????????????????????????????? | | ?????????????????????????????????????????????????? | | ?????????????????????????????????????????????????? | | ?????????????????????????????????????????????????? | | ????????????????????????##???????????????????????? | | ?????????????????????? ? ??????????????"T"??????? | | ??????????????????????""" ?????????????"""??????? | | ?????????????""?????? """ ?###################?? | | ????????????""S???????""" ?# #?? | | ????????????""?????????? # s #?? | | ?????????????????????????? # T s #?? | | ???????????????????????????? " """ #?? | | ?????????????????????????????# """"" ### | | ?????????????????????????????# """"" | | ??????????#####+############## g """"" | | ???????? a g """ | | ???????? g sa | | ???????? @ s | | ???????????????#######+########/####"Y"# | | ?????????????????????????????? !?#"""# | | ?????????????????????????????? ! ##### "" | | ?????????????????????????????? #???# "" | | ??????????????????????????????"""" #???# "" | | ??????????????????????????????"""" #???# | | ??????????????????????????????"""" #???# | | ?????????????????????????????? #???# "" | | ?????????????????????????????????? #???# "" | | ???????????????????????????????????????# "" | | ???????????????????????????????????????# | | ???????????????????????????????????????# | | ????????????????????????????????#+?????# ### | | ????????????????????????????????# ?????## ##??! | | ????????????????????????????????# ??????# #???? | | ????????????????????????????????# ??????# #????? | | ????????????????????????????????# ??????# #????? | | ???????????????????????????????## ##????# #????? | | ???????????????????????????????# ????# #????? | | ???????????????????????????????# ????# #????? | | ????###????????????????????????+ ????### #????? | | ???? ####+???????????????????# #??????# #????? | | ????? ???????????????#??## ##?????# #????? | | ????? ???????????????# ## #?????# #????? | +----------------------------------------------------+ Best States ------------- Heat Dissipation 31 Energy Generation 10 Energy Capacity 250 Matter Stores 300 Matter Capacity 300 Sight Range 18 Terrain Scan Density 10 Utility Shielding 33 Weapon Shielding 33 Evasion (%) 62 Item Schematics ----------------- None Robot Schematics ------------------ None Fabricated ------------ Nothing Alien Tech Used ----------------- None Achievements -------------- It Was An Accident, I Swear Challenges ------------ None Game ------ Seed StructuralPowerStreamer Manual? 0 Play Time 00:13:01 Cumulative 27.3 hours Start 2020.06.03 @ 21:05:40 End 2020.06.03 @ 21:16:31 Sessions 1 Manual Loads 0 Difficulty Rogue Special Mode None Game No. 56 Rogue 56 Adventurer 0 Explorer 0 Win Type - Total 0 Types 0/0/0/0/0/0/0 Lore% 20 Gallery% 22 Achievement% 21 Wizard Run 0 Options --------- ASCII 0 Keyboard 0 Movement Numpad Keybinds 0 Fullscreen 1 Font 18/SmallcapsGlow Map View 76x50 Tactical HUD 1 Map Filters NONE Filters NONE Steam 1 RUN: 48613d6f-523c-4d58-8a50-0eed46d4c563